bitfinex-derivatives/quotes_ETHF0:USTF0_20251007
["timestamp","ask_amount","ask_price","bid_price","bid_amount"]
[1759851469540,0.00247174,4528.3,4528.1,1.3974]
[1759851470444,0.00247174,4528.3,4527.8,0.27282655]
[1759851470745,0.00247174,4528.3,4528.1,1.3974]
[1759851471146,0.00247174,4528.3,4528.0,0.5995]
[1759851471444,0.00247174,4528.3,4528.1,1.3974]
[1759851471844,1.4542,4530.2,4528.2,0.227]
[1759851472144,0.39715,4529.1,4528.3,1.3974]
[1759851472448,1.4542,4529.3,4528.3,0.227]
[1759851472648,0.39715,4529.1,4528.4,1.3974]
[1759851472849,0.39916645,4529.1,4528.4,1.3974]
[1759851473247,10.50537,4531.0,4528.6,1.3974]
[1759851473447,0.39723,4528.2,4528.0,0.5995]
[1759851473647,0.39725,4527.9,4527.8,0.27282655]
[1759851474149,0.39885918,4527.9,4527.8,0.00191808]
[1759851474448,1.85305918,4527.9,4527.8,0.00191808]
[1759851474948,6.85305918,4527.9,4527.8,0.00191808]
[1759851475343,9.93656,4525.6,4522.9,0.02210995]
[1759851475548,2.0349,4525.0,4523.0,1.9969]
[1759851475745,0.39749,4525.2,4523.1,1.3974]
[1759851476051,0.39747,4525.5,4523.5,1.3974]
[1759851476248,0.3975,4525.1,4523.5,1.3974]
[1759851476545,0.05,4525.3,4523.5,1.39904034]
[1759851476751,0.39749,4525.3,4523.7,1.3974]
[1759851476946,0.5807,4526.0,4524.2,1.3974]
[1759851476947,0.39742,4526.0,4524.2,1.3974]
[1759851477152,0.39745,4525.7,4524.4,1.3974]
[1759851477345,1.4542,4525.6,4524.4,1.3974]
[1759851478254,0.39753,4524.7,4524.1,1.3974]
[1759851478456,0.40004816,4524.7,4524.1,1.3974]
[1759851478754,0.39758,4524.2,4523.5,0.00164034]
[1759851479052,0.39755,4524.5,4523.5,1.39904034]
[1759851479250,0.39756,4524.4,4523.5,1.39904034]
[1759851479450,0.39758,4524.2,4523.5,1.39904034]
[1759851479650,0.00251816,4524.7,4523.5,1.39904034]
[1759851479851,0.22151816,4524.7,4523.5,1.39904034]
[1759851480055,0.39761,4523.9,4523.6,1.3974]
[1759851480253,2.0349,4522.8,4521.0,0.00410089]
[1759851480551,4.70897765,4522.7,4520.7,1.3974]
[1759851480755,1.4542,4523.3,4521.0,0.5995]
[1759851480945,1.4542,4523.3,4521.6,1.3974]
[1759851481147,1.4542,4523.3,4520.5,40.8]
[1759851481148,0.39783,4521.3,4520.2,1.3974]
[1759851481455,2.0349,4524.0,4520.7,1.3974]
[1759851481648,0.39758,4524.2,4522.5,1.3974]
[1759851481851,0.07,4524.1,4522.3,40.8]
[1759851482048,1.8519,4522.9,4521.4,1.3974]
[1759851482253,0.5807,4523.4,4521.4,1.3974]
[1759851482454,0.39768,4523.0,4521.5,40.8]
[1759851482754,0.39766,4523.2,4521.6,1.4786]
[1759851482953,0.00173105,4523.4,4522.0,2.0074]
[1759851483148,1.5081,4523.3,4522.1,1.4786]
[1759851483651,0.00173105,4523.4,4522.2,40.8]
[1759851484053,0.39767,4523.2,4522.2,40.8]
[1759851484253,0.39767,4523.2,4522.2,41.027]
[1759851484454,0.00173105,4523.4,4522.3,1.4786]
[1759851484959,0.39766,4523.3,4522.3,1.4786]
[1759851485158,0.39768,4523.1,4522.3,1.4786]
[1759851485354,0.39771,4522.8,4522.4,0.227]
[1759851485654,0.00173105,4523.4,4522.5,1.4786]
[1759851486055,0.00173105,4523.4,4522.8,1.4786]
[1759851486453,0.39766,4523.3,4522.8,1.4786]
[1759851486653,0.39766,4523.3,4520.2,0.27126417]
[1759851486654,31.82131,4522.1,4520.2,0.27126417]
[1759851486849,1.5081,4520.3,4518.1,0.262]
[1759851487054,0.5598,4521.3,4518.4,0.2997]
[1759851487055,0.39788,4520.8,4518.4,0.2997]
[1759851487254,1.5081,4521.0,4518.6,40.8]
[1759851487554,0.39802,4519.2,4518.6,40.8]
[1759851487754,0.00187752,4519.2,4518.6,40.80273502]
[1759851488155,0.00187752,4519.2,4518.1,0.262]
[1759851488361,3.20951777,4519.1,4518.1,0.52325035]
[1759851488553,0.00187752,4519.2,4518.2,0.029]
[1759851488756,0.00187752,4519.2,4518.3,1.4786]
[1759851489055,0.39792,4520.3,4518.5,1.4786]
[1759851489256,1.5081,4520.5,4518.5,1.4786]
[1759851489457,0.39795,4520.0,4518.7,1.4786]
[1759851489665,0.5598,4520.0,4518.1,0.52325035]
[1759851489953,0.39798,4519.7,4518.2,1.4786]
[1759851490153,0.00282027,4520.0,4518.5,0.39807]
[1759851490359,0.40077027,4520.0,4518.6,1.4786]
[1759851490562,0.00282027,4520.0,4518.6,40.9666]
[1759851490856,0.00282027,4520.0,4518.4,0.2997]
[1759851490857,0.00282027,4520.0,4519.8,1.4786]
[1759851491057,0.00282027,4520.0,4519.9,1.7056]
[1759851491260,2.50252,4522.1,4520.1,1.4786]
[1759851491459,0.99442,4522.1,4520.1,1.4786]
[1759851491762,0.39785,4521.1,4521.0,40.8]
[1759851492159,1.90788596,4521.1,4521.0,40.8]
[1759851492359,0.39797,4519.8,4519.2,0.5228]
[1759851492565,0.39797,4519.8,4518.4,35.19078]
[1759851492566,0.39801,4519.4,4518.5,1.4786]
[1759851492758,0.39801,4519.3,4518.6,40.8]
[1759851493358,1.5081,4520.7,4518.7,1.4786]
[1759851493659,0.39795,4520.0,4518.7,1.4786]
[1759851493860,0.39796,4519.9,4518.7,1.4786]
[1759851494058,1.5081,4520.7,4518.9,1.4786]
[1759851494257,0.39796,4519.9,4519.1,1.4786]
[1759851495763,0.39794,4520.1,4519.1,1.4786]
[1759851496065,0.39795,4520.0,4519.1,1.4786]
[1759851496362,1.5081,4520.7,4519.1,1.4786]
[1759851496556,0.39794,4520.1,4519.1,1.4786]
[1759851496757,0.39792,4520.3,4519.3,1.4786]
[1759851496963,0.39796,4519.9,4519.0,1.7056]
[1759851497157,0.39797,4519.8,4519.0,1.7056]
[1759851497358,0.39795,4520.0,4519.0,1.7056]
[1759851497560,0.39797,4519.8,4519.0,1.7056]
[1759851497760,0.39797,4519.7,4519.0,1.7056]
[1759851497956,0.398,4519.5,4519.0,1.4786]
[1759851498159,0.99486,4520.1,4518.6,40.8]
[1759851498364,0.99487,4520.0,4518.7,0.227]
[1759851498557,0.39805,4518.9,4518.7,0.227]
[1759851498758,0.39803,4519.1,4518.8,40.8]
[1759851498958,0.39803,4519.1,4518.9,1.4786]
[1759851499162,0.39804,4519.0,4518.8,40.8]
[1759851499366,0.39804,4519.0,4518.8,42.2786]
[1759851499561,0.39804,4519.0,4518.8,40.8]
[1759851499759,0.8367,4519.1,4518.5,1.4786]
[1759851499961,0.8367,4519.1,4518.6,0.4171]
[1759851500265,0.398,4519.4,4518.8,0.7026]
[1759851500454,0.398,4519.4,4518.8,0.9296]
[1759851500658,1.90607,4519.8,4518.9,0.227]
[1759851500854,0.39797,4519.7,4519.0,0.7026]
[1759851501062,0.39797,4519.7,4519.5,41.5026]
[1759851501365,0.39797,4519.7,4519.5,40.8]
[1759851501765,0.99481,4520.3,4519.5,40.8]
[1759851501965,0.39794,4520.1,4519.5,40.8]
[1759851502166,0.39797,4519.8,4519.5,40.8]
[1759851502369,1.31935,4520.0,4519.5,41.6818]
[1759851502555,0.5703,4520.0,4519.7,0.8818]
[1759851502755,0.5703,4520.0,4519.6,0.227]
[1759851502956,1.5081,4519.9,4519.5,40.8]
[1759851503161,1.90608,4519.7,4519.5,40.8]
[1759851503567,1.5081,4519.6,4519.5,40.8]
[1759851503766,0.99502,4519.4,4518.1,0.52504429]
[1759851504062,0.39802,4519.2,4518.2,1.4786]
[1759851504262,2.50311,4519.5,4518.2,1.4786]
[1759851504465,0.39808,4518.6,4518.1,0.26379394]
[1759851504667,0.39809,4518.4,4518.1,0.26379394]
[1759851504867,0.39808,4518.6,4518.1,0.26379394]
[1759851505068,0.398,4519.5,4518.1,0.26379394]
[1759851505269,1.5081,4519.5,4518.2,1.4786]
[1759851505562,1.5081,4520.2,4518.4,1.4786]
[1759851505865,0.99474,4520.7,4518.4,0.39809]
[1759851506068,0.39797,4519.8,4518.7,1.4786]
[1759851506264,0.39798,4519.7,4518.7,1.4786]
[1759851506464,0.39801,4519.3,4518.3,0.227]
[1759851506772,0.39797,4519.8,4518.4,1.4786]
[1759851506963,0.5703,4520.0,4518.4,1.4786]
[1759851507165,0.39799,4519.6,4518.4,1.4786]
[1759851507468,0.5703,4520.0,4518.6,0.5994]
[1759851507770,0.398,4519.4,4518.7,1.4786]
[1759851507964,1.5081,4519.9,4518.7,1.4786]
[1759851508165,0.39805,4518.8,4518.7,1.4786]
[1759851508565,0.39807,4518.7,4518.1,0.26379394]
[1759851508771,0.39806,4518.8,4518.2,1.4786]
[1759851508961,0.39806,4518.8,4518.3,0.227]
[1759851509166,0.39807,4518.6,4518.3,0.227]
[1759851509566,0.39807,4518.6,4518.4,1.4786]
[1759851509765,0.39807,4518.6,4518.5,42.2786]
[1759851510168,0.39807,4518.6,4518.5,40.8]
[1759851510868,6.5081,4518.6,4518.1,1.74239394]
[1759851511068,0.3981,4518.3,4518.2,1.4786]
[1759851511972,0.3981,4518.3,4518.1,0.26379394]
[1759851512363,6.5081,4518.2,4518.1,3.94e-06]
[1759851512572,6.7351,4518.2,4518.1,3.94e-06]
[1759851512760,0.3982,4517.1,4517.0,1.5008]
[1759851512966,0.39823,4516.8,4516.6,0.04860779]
[1759851513166,0.39835,4515.4,4515.3,0.47266251]
[1759851513365,0.99589,4515.5,4513.9,1.5008]
[1759851513570,0.39846,4514.3,4514.1,0.24591954]
[1759851513772,0.00264414,4514.3,4514.2,1.5008]
[1759851513966,0.00264414,4514.3,4514.1,0.00166109]
[1759851514369,1.4718,4514.2,4512.8,1.5008]
[1759851514672,1.87027,4514.2,4512.6,0.5586]
[1759851514867,0.39849,4513.8,4513.0,1.5008]
[1759851515176,0.99616,4514.2,4512.9,0.26719916]
[1759851515473,1.4718,4514.1,4512.9,0.26311779]
[1759851515774,1.87036,4513.0,4512.9,0.01807758]
[1759851515968,1.4718,4512.8,4511.0,1.50492211]
[1759851516168,1.4718,4513.5,4511.0,1.74496729]
[1759851516470,0.00264414,4514.3,4511.1,1.5008]
[1759851516675,0.00264414,4514.3,4512.3,1.5008]
[1759851516862,0.00264414,4514.3,4512.3,1.50338435]
[1759851517066,2.90268761,4514.2,4512.3,1.50338435]
[1759851517268,2.90268761,4514.2,4512.3,0.00258435]
[1759851517563,0.00264414,4514.3,4512.4,1.5008]
[1759851517769,0.3985,4513.7,4512.4,1.6148]
[1759851517969,0.39847,4514.1,4512.4,1.7278]
[1759851518171,0.00264414,4514.3,4512.5,0.3986]
[1759851518367,1.1913,4516.3,4512.7,1.5232]
[1759851518572,1.1913,4516.3,4513.5,0.39852]
[1759851518773,0.39833,4515.7,4513.7,1.5232]
[1759851519066,0.39823,4516.8,4513.7,1.5232]
[1759851519270,34.539,4517.6,4513.7,1.5232]
[1759851519271,0.39836,4515.3,4513.7,1.5232]
[1759851519467,0.00271825,4515.3,4513.9,1.5232]
[1759851519868,4.31501001,4515.2,4513.9,1.5232]
[1759851520174,0.39841,4514.8,4513.3,1.5232]
[1759851520476,0.3984,4514.9,4513.3,1.7032]
[1759851520674,1.1913,4515.1,4513.3,1.7032]
[1759851520877,1.1913,4515.1,4513.4,40.8]
[1759851521174,0.39844,4514.4,4513.6,0.5618]
[1759851521371,0.3984,4514.9,4513.6,0.5618]
[1759851521570,0.8199,4514.3,4513.7,1.5232]
[1759851521870,0.39848,4514.0,4513.4,40.8]
[1759851522264,1.0469,4514.3,4513.4,40.8]
[1759851522468,0.39849,4513.9,4513.4,40.8]
[1759851522669,0.39847,4514.1,4513.4,40.8]
[1759851522874,1.0479,4514.3,4513.4,40.8]
[1759851523174,0.8199,4514.3,4513.4,40.8]
[1759851523376,0.8199,4514.3,4513.6,0.5618]
[1759851523675,0.39847,4514.1,4513.5,1.5232]
[1759851524069,0.8199,4514.3,4513.6,0.5618]
[1759851524375,0.8199,4514.3,4513.7,1.5232]
[1759851525168,1.1913,4514.0,4512.4,1.5232]
[1759851525370,0.39858,4512.9,4512.4,1.5232]
[1759851525572,0.39856,4513.1,4512.5,40.8]
[1759851525869,2.85059021,4513.9,4512.6,1.5232]
[1759851526177,0.39854,4513.3,4512.6,1.5232]
[1759851526368,0.39855,4513.2,4512.6,1.5232]
[1759851526575,0.39852,4513.6,4512.6,1.5232]
[1759851526866,1.1913,4514.0,4512.6,1.5232]
[1759851526867,0.39854,4513.4,4512.6,1.5232]
[1759851527073,0.39854,4513.3,4512.6,1.5232]
[1759851527274,1.1913,4513.5,4512.5,40.8]
[1759851527574,0.99626,4513.8,4512.3,1.52578435]
[1759851527575,0.3986,4512.7,4512.3,1.52578435]
[1759851527878,0.39861,4512.5,4512.4,1.5232]
[1759851528279,0.39861,4512.5,4512.3,0.00258435]
[1759851528477,0.229,4513.0,4512.3,1.52578435]
[1759851528671,1.1913,4512.4,4512.3,0.00258435]
[1759851529171,1.1913,4512.4,4511.0,0.00412211]
[1759851529172,0.99666,4511.9,4511.0,0.00412211]
[1759851529377,4.03077159,4512.4,4511.1,1.5232]
[1759851529678,2.83947159,4511.8,4511.1,1.5232]
[1759851529870,0.39867,4511.9,4511.1,1.5232]
[1759851530378,0.39867,4511.9,4511.1,1.52573244]
[1759851530379,0.39869,4511.7,4511.1,1.52573244]
[1759851530579,0.00225728,4511.9,4511.1,0.00253244]
[1759851530776,0.39872,4511.3,4511.1,40.80253244]
[1759851530980,0.39872,4511.3,4511.1,1.52573244]
[1759851531176,0.00225728,4511.9,4511.1,0.00253244]
[1759851531377,0.39871,4511.4,4511.1,0.00253244]
[1759851531574,0.00225728,4511.9,4511.1,0.00253244]
[1759851531780,0.3987,4511.5,4511.1,0.00253244]
[1759851532080,1.1913,4511.7,4511.1,0.00253244]
[1759851532281,0.00225728,4511.9,4511.2,1.5232]
[1759851532474,0.229,4511.8,4511.2,1.5232]
[1759851532676,2.94725216,4511.8,4511.2,1.5232]
[1759851532980,0.00225728,4511.9,4511.4,0.5618]
[1759851533180,0.39859,4512.8,4511.5,1.5232]
[1759851533475,0.39855,4513.2,4511.5,1.92189]
[1759851533671,1.1913,4514.2,4511.8,0.39866]
[1759851533878,0.39849,4513.9,4512.1,1.5232]
[1759851534084,0.39851,4513.7,4512.3,1.5232]
[1759851534276,0.00252647,4513.9,4512.3,1.5232]
[1759851534477,0.23960638,4514.3,4513.7,1.5232]
[1759851534679,1.81072355,4514.8,4514.4,1.5232]
[1759851534982,0.39836,4515.4,4514.4,1.5232]
[1759851535177,1.2128,4515.8,4514.4,1.5232]
[1759851535384,0.39843,4514.5,4514.4,0.00265548]
[1759851535782,1.1913,4515.1,4514.4,0.00265548]
[1759851536079,0.39843,4514.5,4514.4,0.00265548]
[1759851536286,0.39842,4514.7,4514.4,0.00265548]
[1759851536480,0.39843,4514.5,4514.4,0.00265548]
[1759851536684,1.58971,4514.8,4514.4,0.00265548]
[1759851536879,1.1913,4515.6,4514.4,0.00265548]
[1759851537081,0.00210233,4515.8,4514.5,1.5232]
[1759851537281,1.1035,4515.5,4515.0,0.5618]
[1759851537482,1.1913,4517.1,4515.2,1.5232]
[1759851537781,1.1913,4516.6,4515.2,1.5232]
[1759851538089,0.39832,4515.8,4515.2,1.5232]
[1759851538275,0.00215325,4515.8,4515.2,1.5232]
[1759851538681,0.00215325,4515.8,4515.7,2.085]
[1759851539083,0.00215325,4515.8,4515.7,7.085]
[1759851539288,0.39823,4516.8,4515.8,1.5232]
[1759851539487,0.407,4516.2,4515.7,0.5618]
[1759851539779,0.022,4517.9,4515.8,1.5232]
[1759851539984,0.022,4517.9,4515.7,0.5618]
[1759851539985,0.39809,4518.4,4516.5,1.5232]
[1759851540186,0.40094351,4518.4,4516.7,1.5232]
[1759851540384,2.87151542,4519.8,4518.0,0.39812]
[1759851540584,0.087,4520.6,4518.2,1.5232]
[1759851540779,2.69620136,4520.9,4519.0,1.5232]
[1759851540780,2.87151542,4520.5,4519.0,1.5232]
[1759851540980,1.4592,4521.3,4519.3,1.5232]
[1759851541183,0.39796,4519.8,4518.9,40.8]
[1759851541385,1.46086849,4519.8,4518.9,0.00255253]
[1759851541582,1.85723,4519.0,4518.9,0.00255253]
[1759851541887,1.85723,4519.0,4518.9,1e-08]
[1759851542184,1.85723,4519.0,4517.2,40.8]
[1759851542185,0.39817,4517.6,4517.2,40.8]
[1759851542485,9.95088,4519.1,4516.0,0.5618]
[1759851542486,0.3981,4518.3,4516.9,1.5232]
[1759851542679,0.39816,4517.6,4516.9,1.5232]
[1759851542886,1.5204,4518.0,4516.9,1.5232]
[1759851543190,0.39839,4515.0,4514.3,1.3818]
[1759851543384,0.39841,4514.8,4513.7,1.3818]
[1759851543689,0.081,4515.4,4513.9,1.3818]
[1759851543876,2.98740786,4515.4,4513.9,1.3818]
[1759851544080,2.99011428,4515.4,4513.9,0.00271085]
[1759851544285,0.39844,4514.5,4513.9,0.00271085]
[1759851544481,0.39839,4515.1,4513.9,0.00271085]
[1759851544785,0.00270642,4515.4,4514.0,1.3818]
[1759851545281,0.39844,4514.4,4514.0,1.3818]
[1759851545483,1.5204,4514.0,4513.9,8.5e-07]
[1759851545788,20.91484,4515.2,4513.9,8.5e-07]
[1759851545789,0.39846,4514.2,4513.9,8.5e-07]
[1759851546284,0.00270642,4515.4,4513.9,1.38180085]
[1759851547489,0.39837,4515.3,4513.9,1.38180085]
[1759851547689,0.40106642,4515.4,4513.9,1.38180085]
[1759851547889,0.00270642,4515.4,4513.9,1.38180085]
[1759851548392,0.39838,4515.1,4513.9,1.38180085]
[1759851548585,0.00270642,4515.4,4513.9,1.38180085]
[1759851549386,0.39841,4514.8,4513.9,1.38180085]
[1759851549684,0.39846,4514.2,4513.9,8.5e-07]
[1759851549884,0.39841,4514.8,4513.9,8.5e-07]
[1759851550085,2.92395945,4515.3,4513.9,8.5e-07]
[1759851550281,0.00270642,4515.4,4513.9,8.5e-07]
[1759851550584,2.92395945,4515.3,4513.9,8.5e-07]
[1759851550785,0.39855,4513.2,4511.6,34.556]
[1759851550979,1.5204,4514.3,4512.6,1.9755]
[1759851551188,0.99618,4514.1,4512.6,1.3818]
[1759851551386,0.39852,4513.5,4512.1,1.3818]
[1759851551592,0.39854,4513.4,4512.1,1.3818]
[1759851551888,0.161,4513.8,4512.1,1.38382784]
[1759851552088,0.39853,4513.5,4512.1,1.38382784]
[1759851552290,0.39854,4513.4,4512.1,1.38382784]
[1759851552487,0.216,4513.9,4512.1,1.38382784]
[1759851552792,0.39863,4512.3,4512.1,1.38382784]
[1759851552991,1.91903,4512.3,4512.1,0.00202784]
[1759851553287,0.39878,4510.6,4509.9,1.9755]
[1759851553587,0.39873,4511.2,4510.0,40.8]
[1759851553792,0.99656,4512.4,4510.1,1.3818]
[1759851553983,1.5204,4511.9,4510.1,1.3818]
[1759851554188,0.39879,4510.5,4510.1,1.3818]
[1759851554385,0.231,4511.1,4510.1,1.38435793]
[1759851554586,0.39876,4510.9,4510.1,1.38435793]
[1759851554787,0.39878,4510.6,4510.2,1.3818]
[1759851554983,0.39874,4511.0,4510.1,0.00255793]
[1759851555196,0.231,4511.1,4510.2,1.3818]
[1759851555392,0.231,4511.5,4510.2,1.3818]
[1759851555886,2.86561564,4511.8,4510.2,1.3818]
[1759851556191,0.3987,4511.5,4510.2,1.3818]
[1759851556390,0.23,4511.6,4510.2,1.3818]
[1759851556592,0.002425,4511.9,4510.2,1.3818]
[1759851556791,0.23,4511.8,4510.2,1.3818]
[1759851557192,0.401095,4511.9,4510.2,1.3818]
[1759851557495,0.002425,4511.9,4510.3,0.3988]
[1759851557695,0.002425,4511.9,4511.7,0.5937]
[1759851557994,0.002425,4511.9,4511.8,1.3818]
[1759851559389,0.39854,4513.4,4512.1,1.3818]
[1759851559592,0.102,4514.4,4512.2,1.3818]
[1759851559792,2.90239895,4514.3,4512.6,1.3818]
[1759851559989,0.39845,4514.3,4512.8,0.5937]
[1759851560187,2.92382998,4514.8,4512.9,1.3818]
[1759851560386,0.39846,4514.2,4512.9,1.3818]
[1759851560694,4.44422998,4514.1,4512.7,1.3818]
[1759851560994,0.39859,4512.8,4512.0,1.9755]
[1759851561193,0.39864,4512.2,4511.5,1.3818]
[1759851561399,1.5204,4513.0,4511.5,1.3818]
[1759851561590,0.39866,4512.0,4511.5,1.3818]
[1759851561792,0.39866,4512.0,4511.0,1.3818]
[1759851562093,0.198,4512.3,4511.0,1.3818]
[1759851562292,0.198,4512.3,4510.8,0.5937]
[1759851562293,0.39857,4513.0,4511.2,0.39872]
[1759851562487,0.39862,4512.4,4511.3,1.3818]
[1759851563094,0.39863,4512.3,4511.3,1.3818]
[1759851563291,0.39863,4512.3,4511.3,42.1818]
[1759851563493,0.39865,4512.1,4511.3,1.3818]
[1759851563693,1.5204,4512.8,4511.3,1.3818]
[1759851563893,0.23,4512.7,4511.3,1.3818]
[1759851564097,0.39865,4512.0,4511.3,1.3818]
[1759851564404,3.13890758,4512.7,4511.3,1.3818]
[1759851564698,2.90890758,4511.9,4510.4,0.5937]
[1759851564898,2.90890758,4511.9,4510.5,1.3818]
[1759851564899,0.39866,4511.9,4510.5,1.3818]
[1759851565093,0.39863,4512.4,4510.5,1.78058]
[1759851565293,2.84548436,4512.7,4510.5,1.78058]
[1759851565294,0.3987,4511.5,4510.5,1.3818]
[1759851565597,0.00224444,4511.5,4510.5,1.3818]
[1759851566592,1.5204,4513.4,4511.3,1.3818]
[1759851566793,1.5204,4514.1,4511.8,1.3818]
[1759851566995,0.39858,4512.9,4511.8,1.3818]
[1759851567195,1.5204,4509.5,4508.2,1.3818]
[1759851567394,0.23,4509.4,4508.2,1.3818]
[1759851567692,2.92751612,4509.4,4508.2,1.3818]
[1759851567896,1.5204,4510.2,4508.2,1.3818]
[1759851568092,0.39892,4509.0,4508.2,1.3818]
[1759851568399,0.00178598,4509.0,4508.3,1.3818]
[1759851568993,0.39894,4508.8,4508.3,1.3818]
[1759851569307,0.00178598,4509.0,4508.3,1.3818]
[1759851569495,0.39896,4508.6,4508.2,0.00264547]
[1759851569798,0.39897,4508.5,4508.3,1.3818]
[1759851570197,0.00178598,4509.0,4508.2,0.00264547]
[1759851570399,0.00178598,4509.0,4508.2,1.38444547]
[1759851570590,0.39893,4508.8,4508.2,1.38444547]
[1759851570792,0.00178598,4509.0,4508.2,1.38444547]
[1759851570996,0.39893,4508.9,4508.2,1.38444547]
[1759851571298,0.00178598,4509.0,4508.2,1.38444547]
[1759851571501,0.39894,4508.8,4508.2,1.38444547]
[1759851571698,0.00178598,4509.0,4508.2,1.38444547]
[1759851572797,1.4763,4508.0,4505.9,0.5937]
[1759851572991,0.99759,4507.8,4506.0,1.4448]
[1759851573191,2.82017934,4507.9,4506.0,1.4448]
[1759851573391,1.4763,4509.5,4506.7,1.4448]
[1759851573597,0.39898,4508.4,4506.7,1.4448]
[1759851573802,0.39898,4508.3,4507.0,1.4448]
[1759851574003,0.161,4508.9,4507.0,1.4448]
[1759851574201,0.99742,4508.5,4507.0,1.4448]
[1759851574398,0.99751,4508.1,4506.8,1.4448]
[1759851574700,1.4763,4508.4,4506.8,1.4448]
[1759851574701,2.47373,4508.4,4506.8,1.4448]
[1759851575003,0.9975,4508.1,4506.8,1.4448]
[1759851575201,0.39906,4507.5,4506.8,1.4448]
[1759851575400,2.90461101,4508.0,4506.8,1.4448]
[1759851575602,0.231,4507.9,4506.8,1.4448]
[1759851575802,0.3991,4507.0,4506.8,1.4448]
[1759851576300,0.39911,4506.9,4506.7,0.00283111]
[1759851576499,0.39909,4507.1,4506.7,0.00283111]
[1759851576809,0.39911,4506.9,4506.7,0.00283111]
[1759851576998,1.4763,4506.8,4506.7,0.00283111]
[1759851577192,0.231,4506.8,4506.7,0.00283111]
[1759851577397,0.39911,4506.9,4506.7,0.00283111]
[1759851577706,0.231,4506.8,4506.7,0.00283111]
[1759851577898,0.231,4506.8,4506.7,1.44763111]
[1759851578098,0.3991,4506.9,4506.7,0.00283111]
[1759851578293,0.6301,4506.9,4506.7,0.00283111]
[1759851578693,0.3991,4506.9,4506.7,0.00283111]
[1759851579001,1.3917,4508.7,4506.8,1.3748]
[1759851579303,0.39903,4507.8,4506.8,1.3748]
[1759851579498,0.39906,4507.4,4506.8,1.3748]
[1759851579698,0.99759,4507.7,4506.8,1.3748]
[1759851579896,0.39909,4507.1,4506.8,1.3748]
[1759851580100,1.3917,4507.8,4506.8,1.3748]
[1759851580395,0.3991,4507.0,4506.7,0.00283111]
[1759851580594,3.81830847,4507.7,4506.7,0.00283111]
[1759851580595,0.39911,4506.8,4506.7,0.00283111]
[1759851580796,0.39911,4506.8,4506.7,1.37763111]
[1759851581006,0.39911,4506.8,4506.7,0.00283111]
[1759851581599,0.99761,4507.6,4506.7,0.00283111]
[1759851581799,0.231,4507.2,4506.7,0.00283111]
[1759851582010,0.39911,4506.9,4506.8,1.3748]
[1759851582210,2.83108179,4507.7,4506.7,1.37763111]
[1759851582503,0.39902,4507.8,4506.7,1.37763111]
[1759851582707,0.99749,4508.2,4506.7,1.37763111]
[1759851582899,0.39905,4507.6,4506.7,1.37763111]
[1759851583105,1.3917,4508.4,4506.7,1.37763111]
[1759851583603,0.39913,4506.6,4505.9,1.3748]
[1759851583800,1.3917,4507.6,4506.0,1.3748]
[1759851583999,0.39915,4506.4,4505.9,0.5483]
[1759851584210,0.99779,4506.8,4506.1,1.3748]
[1759851584605,0.39918,4506.1,4506.0,1.3748]
[1759851584808,0.39915,4506.4,4506.0,1.37692271]
[1759851585004,0.99769,4507.3,4506.1,1.3748]
[1759851585005,9.97688,4507.3,4506.1,1.3748]
[1759851585318,1.79087,4506.1,4506.0,1e-08]
[1759851585499,2.02187,4506.1,4506.0,1e-08]
[1759851585904,6.79087,4506.1,4506.0,1e-08]
[1759851586204,7.90395042,4506.1,4504.6,1.3748]
[1759851586508,7.90395042,4506.1,4504.4,0.47266251]
[1759851586509,0.39931,4504.6,4504.4,0.47266251]
[1759851586806,0.231,4505.2,4504.4,0.47266251]
[1759851587007,0.39931,4504.6,4504.4,0.47266251]
[1759851587311,0.40141538,4504.6,4504.4,0.47547316]
[1759851587699,1.3917,4504.5,4504.4,0.47547316]
[1759851587905,1.6227,4504.5,4504.4,0.47547316]
[1759851588102,0.00210538,4504.6,4504.5,1.3748]
[1759851588408,1.3917,4506.2,4504.6,1.3748]
[1759851588702,0.231,4506.1,4504.6,1.3748]
[1759851589211,2.92920191,4506.0,4504.6,1.3748]
[1759851589403,0.00236181,4506.0,4504.7,0.39929]
[1759851589596,0.00236181,4506.0,4504.8,1.77408]
[1759851589799,0.00236181,4506.0,4504.8,1.3748]
[1759851590000,0.39925,4505.3,4504.8,1.3748]
[1759851590198,1.3917,4505.9,4504.8,1.3748]
[1759851590406,0.39923,4505.5,4504.8,1.3748]
[1759851590602,0.3992,4505.9,4504.8,1.3748]
[1759851590804,0.00236181,4506.0,4504.8,1.3748]
[1759851591005,0.39922,4505.6,4505.0,1.3748]
[1759851591196,0.40155181,4506.0,4505.0,1.3748]
[1759851591399,0.40155181,4506.0,4504.8,1.3748]
[1759851591400,0.00236181,4506.0,4504.8,1.3748]
[1759851591609,0.39929,4504.8,4504.5,0.5483]
[1759851591810,0.3993,4504.7,4504.6,1.3748]
[1759851592513,0.00236181,4506.0,4504.8,0.5483]
[1759851592709,0.00236181,4506.0,4504.9,1.3748]
[1759851592905,0.155,4507.8,4505.5,1.3748]
[1759851593112,2.85111039,4505.9,4504.6,1.3748]
[1759851593406,0.99804,4505.7,4504.6,1.3748]
[1759851593612,0.39926,4505.2,4504.6,1.3748]
[1759851593805,0.39928,4504.9,4504.8,1.9231]
[1759851594005,0.39931,4504.6,4504.5,0.5483]
[1759851594712,0.39931,4504.6,4503.9,40.8]
[1759851594910,0.39931,4504.6,4504.4,1.85027316]
[1759851595111,0.0020443,4504.9,4504.4,0.47547316]
[1759851595301,0.0020443,4504.9,4504.5,1.3748]
[1759851595501,0.4013243,4504.9,4504.4,0.47547316]
[1759851595707,0.4013243,4504.9,4504.8,1.9231]
[1759851595708,0.0020443,4504.9,4504.8,1.9231]